[Event "22nd Trieste Masters Open 2020"]
[Site "Trieste"]
[Date "2020.08.31"]
[Round "1.2"]
[White "Cappelletto, Joshuaede"]
[Black "Bosiocic, Marin"]
[Result "0-1"]
[ECO "B90"]
[WhiteElo "2092"]
[BlackElo "2606"]
[Annotator "ChessBase"]
[PlyCount "70"]
[EventDate "2020.08.31"]
[EventType "swiss"]
[EventCountry "ITA"]
[SourceTitle "playchess.com"]
[Source "ChessBase"]
[SourceQuality "1"]
[TimeControl "5400+30"]

1. e4 {[%emt 0:00:00]} c5 {[%emt 0:00:00]} 2. Nf3 {[%emt 0:00:00]} d6 {[%emt 0:00:00]} 3. d4 {[%emt 0:00:00]} cxd4 {[%emt 0:00:00]} 4. Nxd4 {[%emt 0:00:00]} Nf6 {[%emt 0:00:00]} 5. Nc3 {[%emt 0:00:00]} a6 {[%emt 0:00:06]} 6. Be3 {[%emt 0:01:28]} e5 {[%emt 0:00:08]} 7. Nb3 {[%emt 0:00:05]} Be6 {[%emt 0:00:08]} 8. f3 {[%emt 0:00:03]} h5 {[%emt 0:00:13]} 9. Qd2 {[%emt 0:00:12]} Nbd7 {[%emt 0:00:44]} 10. O-O-O {[%emt 0:02:08]} Rc8 {[%emt 0:02:33]} 11. Nd5 {[%emt 0:02:18]} Bxd5 {[%emt 0:05:06]} 12. exd5 {[%emt 0:00:05]} Nb6 {[%emt 0:00:52]} 13. Bxb6 {[%emt 0:05:38]} Qxb6 {[%emt 0:00:17]} 14. Kb1 {[%emt 0:00:09]} g6 {[%emt 0:01:23]} 15. g3 {[%emt 0:07:13]} Bh6 {[%emt 0:01:06]} 16. Qe1 {[%emt 0:11:25]} O-O {[%emt 0:02:06]} 17. h4 {[%emt 0:14:39]} Rc7 {[%emt 0:08:55]} 18. Rh2 {[%emt 0:05:40]} Qe3 {[%emt 0:06:33]} 19. Re2 {[%emt 0:03:24]} Qb6 {[%emt 0:03:18]} 20. Rg2 {[%emt 0:04:07]} Re8 {[%emt 0:05:12]} 21. Re2 {[%emt 0:14:43]} e4 {[%emt 0:03:23]} 22. fxe4 {[%emt 0:02:02]} Ng4 {[%emt 0:00:40]} 23. Bh3 {[%emt 0:04:47]} Ne3 {[%emt 0:01:29]} 24. Rd4 {[%emt 0:00:18]} Nc4 {[%emt 0:00:53]} 25. c3 {[%emt 0:02:52]} Bg7 {[%emt 0:01:07]} 26. Rd1 {[%emt 0:00:53]} a5 {[%emt 0:01:03]} 27. Qg1 {[%emt 0:00:04]} Qb5 {[%emt 0:01:13]} 28. Ka1 {[%emt 0:01:38]} a4 {[%emt 0:04:17]} 29. Nd4 {[%emt 0:00:28]} Qa5 {[%emt 0:00:58]} 30. Rc1 {[%emt 0:03:24]} Qb6 {[%emt 0:05:46]} 31. Nf3 {[%emt 0:02:44]} Rc5 {[%emt 0:00:06]} 32. Bd7 {[%emt 0:05:11]} Rxe4 {[%emt 0:01:49]} 33. Rf2 {[%emt 0:00:28]} Re3 {[%emt 0:06:13]} 34. Nd4 {[%emt 0:01:23]} a3 {[%emt 0:01:09]} 35. b3 {[%emt 0:00:04]} Rxc3 {[%emt 0:00:35]} 0-1

[Event "22nd Trieste Masters Open 2020"]
[Site "Trieste"]
[Date "2020.08.31"]
[Round "1.3"]
[White "Brunello, Sabino"]
[Black "Regondi, Lorenzo"]
[Result "1-0"]
[ECO "E06"]
[WhiteElo "2532"]
[BlackElo "2066"]
[Annotator "ChessBase"]
[PlyCount "129"]
[EventDate "2020.08.31"]
[EventType "swiss"]
[EventCountry "ITA"]
[SourceTitle "playchess.com"]
[Source "ChessBase"]
[SourceQuality "1"]
[TimeControl "5400+30"]

1. Nf3 {[%emt 0:00:00]} d5 {[%emt 0:00:00]} 2. c4 {[%emt 0:00:00]} e6 {[%emt 0:00:08]} 3. g3 {[%emt 0:00:04]} Nf6 {[%emt 0:00:12]} 4. Bg2 {[%emt 0:00:09]} Be7 {[%emt 0:00:03]} 5. O-O {[%emt 0:01:49]} O-O {[%emt 0:00:13]} 6. Qc2 {[%emt 0:00:09]} c5 {[%emt 0:05:01]} 7. d4 {[%emt 0:01:09]} cxd4 {[%emt 0:01:30]} 8. Nxd4 {[%emt 0:00:05]} Bd7 {[%emt 0:16:33]} 9. cxd5 {[%emt 0:02:15]} exd5 {[%emt 0:00:23]} 10. Nc3 {[%emt 0:06:28]} Nc6 {[%emt 0:00:25]} 11. Nf5 {[%emt 0:02:20]} Be6 {[%emt 0:21:14]} 12. Bg5 {[%emt 0:07:15]} h6 {[%emt 0:02:49]} 13. Bh4 {[%emt 0:17:27]} Bxf5 {[%emt 0:11:46]} 14. Qxf5 {[%emt 0:00:21]} g5 {[%emt 0:00:08]} 15. Bxg5 {[%emt 0:09:20]} hxg5 {[%emt 0:01:24]} 16. Qxg5+ {[%emt 0:00:34]} Kh8 {[%emt 0:00:26]} 17. Nxd5 {[%emt 0:19:42]} Nxd5 {[%emt 0:02:10]} 18. Qh5+ {[%emt 0:04:23]} Kg7 {[%emt 0:01:10]} 19. Rad1 {[%emt 0:02:33]} Qd6 {[%emt 0:05:13]} 20. Rxd5 {[%emt 0:01:40]} Qg6 {[%emt 0:00:16]} 21. Qxg6+ {[%emt 0:00:57]} Kxg6 {[%emt 0:00:31]} 22. Rd7 {[%emt 0:00:31]} Bf6 {[%emt 0:09:32]} 23. Rxb7 {[%emt 0:00:16]} Nd4 {[%emt 0:00:14]} 24. Be4+ {[%emt 0:08:28]} Kg7 {[%emt 0:00:26]} 25. e3 {[%emt 0:00:21]} Ne6 {[%emt 0:00:44]} 26. b4 {[%emt 0:05:11]} Rfb8 {[%emt 0:00:41]} 27. Rd7 {[%emt 0:01:39]} Rd8 {[%emt 0:00:07]} 28. Rfd1 {[%emt 0:00:20]} Rab8 {[%emt 0:01:17]} 29. Bf5 {[%emt 0:01:09]} Nf8 {[%emt 0:03:04]} 30. Rxd8 {[%emt 0:00:03]} Bxd8 {[%emt 0:00:52]} 31. Rd5 {[%emt 0:01:31]} Kf6 {[%emt 0:02:02]} 32. Bc2 {[%emt 0:01:21]} Ke7 {[%emt 0:00:50]} 33. b5 {[%emt 0:00:31]} Ne6 {[%emt 0:01:00]} 34. Bb3 {[%emt 0:02:46]} Rc8 {[%emt 0:01:47]} 35. Rf5 {[%emt 0:00:20]} Bb6 {[%emt 0:00:47]} 36. h4 {[%emt 0:00:47]} Rg8 {[%emt 0:10:07]} 37. Kg2 {[%emt 0:00:10]} Rg7 {[%emt 0:00:05]} 38. Kf3 {[%emt 0:01:37]} Nc5 {[%emt 0:00:20]} 39. Bc2 {[%emt 0:02:09]} Ke6 {[%emt 0:00:08]} 40. Rg5 {[%emt 0:00:47]} Rxg5 {[%emt 0:01:01]} 41. hxg5 {[%emt 0:00:02]} Nd7 {[%emt 0:01:01]} 42. Kg4 {[%emt 0:01:01]} Ne5+ {[%emt 0:01:55]} 43. Kh5 {[%emt 0:00:09]} Ke7 {[%emt 0:00:15]} 44. a4 {[%emt 0:01:10]} Ba5 {[%emt 0:00:28]} 45. f4 {[%emt 0:00:32]} Nc4 {[%emt 0:00:07]} 46. e4 {[%emt 0:00:20]} Be1 {[%emt 0:00:37]} 47. g4 {[%emt 0:00:23]} Bd2 {[%emt 0:00:29]} 48. f5 {[%emt 0:00:12]} Ne5 {[%emt 0:00:25]} 49. Bb3 {[%emt 0:01:25]} Kf8 {[%emt 0:00:14]} 50. Kh6 {[%emt 0:00:35]} f6 {[%emt 0:01:11]} 51. a5 {[%emt 0:00:28]} Bxg5+ {[%emt 0:00:37]} 52. Kh5 {[%emt 0:00:28]} Kg7 {[%emt 0:00:35]} 53. Bc2 {[%emt 0:00:25]} Nc4 {[%emt 0:01:09]} 54. b6 {[%emt 0:00:09]} Ne3 {[%emt 0:00:41]} 55. b7 {[%emt 0:00:28]} Ng2 {[%emt 0:00:09]} 56. b8=Q {[%emt 0:01:36]} Nf4+ {[%emt 0:00:27]} 57. Qxf4 {[%emt 0:00:00]} Bxf4 {[%emt 0:00:05]} 58. a6 {[%emt 0:00:00]} Kh7 {[%emt 0:01:08]} 59. g5 {[%emt 0:00:48]} fxg5 {[%emt 0:00:34]} 60. f6 {[%emt 0:00:26]} Be5 {[%emt 0:00:41]} 61. Kxg5 {[%emt 0:00:18]} Kg8 {[%emt 0:00:25]} 62. Kf5 {[%emt 0:00:04]} Bc7 {[%emt 0:00:09]} 63. e5 {[%emt 0:00:04]} Kf8 {[%emt 0:00:09]} 64. e6 {[%emt 0:00:07]} Bd8 {[%emt 0:00:11]} 65. Ba4 {[%emt 0:00:07]} 1-0

[Event "22nd Trieste Masters Open 2020"]
[Site "Trieste"]
[Date "2020.08.31"]
[Round "1.4"]
[White "Raccanello, Marianna"]
[Black "Moroni, Luca Jr"]
[Result "0-1"]
[ECO "C54"]
[WhiteElo "2056"]
[BlackElo "2530"]
[Annotator "ChessBase"]
[PlyCount "62"]
[EventDate "2020.08.31"]
[EventType "swiss"]
[EventCountry "ITA"]
[SourceTitle "playchess.com"]
[Source "ChessBase"]
[SourceQuality "1"]
[TimeControl "5400+30"]

1. e4 {[%emt 0:00:00]} e5 {[%emt 0:00:00]} 2. Nf3 {[%emt 0:00:00]} Nc6 {[%emt 0:00:00]} 3. Bc4 {[%emt 0:00:00]} Bc5 {[%emt 0:00:00]} 4. c3 {[%emt 0:00:00]} Nf6 {[%emt 0:00:00]} 5. d3 {[%emt 0:00:00]} d6 {[%emt 0:00:00]} 6. Bg5 {[%emt 0:00:17]} h6 {[%emt 0:01:14]} 7. Bh4 {[%emt 0:00:16]} a6 {[%emt 0:00:23]} 8. Nbd2 {[%emt 0:02:20]} Ba7 {[%emt 0:01:11]} 9. a4 {[%emt 0:03:32]} Qe7 {[%emt 0:04:28]} 10. a5 {[%emt 0:01:44]} g5 {[%emt 0:04:14]} 11. Bg3 {[%emt 0:01:28]} Nh5 {[%emt 0:02:49]} 12. Qe2 {[%emt 0:14:26]} Nf4 {[%emt 0:06:04]} 13. Bxf4 {[%emt 0:00:07]} exf4 {[%emt 0:00:31]} 14. h3 {[%emt 0:01:23]} Bd7 {[%emt 0:02:20]} 15. d4 {[%emt 0:07:38]} O-O-O {[%emt 0:05:40]} 16. O-O-O {[%emt 0:01:03]} Rde8 {[%emt 0:01:54]} 17. Rhe1 {[%emt 0:00:43]} h5 {[%emt 0:03:51]} 18. Nh2 {[%emt 0:10:21]} Qf8 {[%emt 0:05:48]} 19. f3 {[%emt 0:05:28]} f5 {[%emt 0:02:02]} 20. Qf1 {[%emt 0:02:54]} fxe4 {[%emt 0:04:51]} 21. Nxe4 {[%emt 0:00:30]} Qf5 {[%emt 0:03:24]} 22. d5 {[%emt 0:06:29]} Ne5 {[%emt 0:04:52]} 23. Bb3 {[%emt 0:10:00]} g4 {[%emt 0:07:04]} 24. fxg4 {[%emt 0:09:33]} hxg4 {[%emt 0:00:21]} 25. hxg4 {[%emt 0:01:44]} Qg6 {[%emt 0:03:25]} 26. Qxf4 {[%emt 0:01:22]} Ref8 {[%emt 0:00:13]} 27. Qg3 {[%emt 0:00:09]} Qh6+ {[%emt 0:00:08]} 28. g5 {[%emt 0:01:15]} Qxh2 {[%emt 0:00:07]} 29. Qxh2 {[%emt 0:01:06]} Rxh2 {[%emt 0:00:03]} 30. g3 {[%emt 0:01:16]} Bg4 {[%emt 0:01:45]} 31. Rh1 {[%emt 0:00:04]} Bxd1 {[%emt 0:00:10]} 0-1

[Event "22nd Trieste Masters Open 2020"]
[Site "Trieste"]
[Date "2020.08.31"]
[Round "1.5"]
[White "Jovanic, Ognjen"]
[Black "Solmajer, Luka"]
[Result "1-0"]
[ECO "D45"]
[WhiteElo "2526"]
[BlackElo "2054"]
[Annotator "ChessBase"]
[PlyCount "135"]
[EventDate "2020.08.31"]
[EventType "swiss"]
[EventCountry "ITA"]
[SourceTitle "playchess.com"]
[Source "ChessBase"]
[SourceQuality "1"]
[TimeControl "5400+30"]

1. d4 {[%emt 0:00:00]} d5 {[%emt 0:00:00]} 2. c4 {[%emt 0:00:00]} c6 {[%emt 0:00:00]} 3. e3 {[%emt 0:01:34]} Nf6 {[%emt 0:00:20]} 4. Nc3 {[%emt 0:01:06]} e6 {[%emt 0:01:28]} 5. Nf3 {[%emt 0:00:21]} Nbd7 {[%emt 0:00:07]} 6. Qc2 {[%emt 0:01:11]} Bd6 {[%emt 0:00:13]} 7. b3 {[%emt 0:00:15]} O-O {[%emt 0:00:31]} 8. Be2 {[%emt 0:00:11]} b6 {[%emt 0:03:28]} 9. O-O {[%emt 0:00:32]} Bb7 {[%emt 0:00:28]} 10. Bb2 {[%emt 0:00:14]} Rc8 {[%emt 0:06:32]} 11. Rad1 {[%emt 0:02:18]} c5 {[%emt 0:16:35]} 12. cxd5 {[%emt 0:00:30]} exd5 {[%emt 0:00:42]} 13. dxc5 {[%emt 0:00:51]} bxc5 {[%emt 0:03:16]} 14. Rfe1 {[%emt 0:01:21]} Qe7 {[%emt 0:04:13]} 15. g3 {[%emt 0:03:59]} Rfd8 {[%emt 0:05:53]} 16. Qb1 {[%emt 0:06:59]} Ne5 {[%emt 0:10:53]} 17. Nb5 {[%emt 0:06:17]} Nxf3+ {[%emt 0:04:09]} 18. Bxf3 {[%emt 0:00:01]} Bb8 {[%emt 0:05:16]} 19. Bg2 {[%emt 0:09:10]} a6 {[%emt 0:03:39]} 20. Nc3 {[%emt 0:00:24]} Be5 {[%emt 0:15:08]} 21. Na4 {[%emt 0:04:36]} Ne4 {[%emt 0:09:08]} 22. Nb6 {[%emt 0:06:04]} Rb8 {[%emt 0:00:13]} 23. Bxe5 {[%emt 0:03:24]} Qxe5 {[%emt 0:00:16]} 24. Bxe4 {[%emt 0:00:26]} dxe4 {[%emt 0:05:58]} 25. Nd7 {[%emt 0:00:10]} Rxd7 {[%emt 0:01:22]} 26. Rxd7 {[%emt 0:00:02]} Bc6 {[%emt 0:01:20]} 27. Rd2 {[%emt 0:00:52]} Bb5 {[%emt 0:00:39]} 28. Red1 {[%emt 0:04:25]} Bd3 {[%emt 0:00:26]} 29. Rxd3 {[%emt 0:00:11]} exd3 {[%emt 0:00:05]} 30. Qxd3 {[%emt 0:00:05]} a5 {[%emt 0:01:42]} 31. Qd8+ {[%emt 0:02:11]} Qe8 {[%emt 0:00:06]} 32. Qxa5 {[%emt 0:00:23]} Rc8 {[%emt 0:00:49]} 33. Rd5 {[%emt 0:01:36]} Qe7 {[%emt 0:00:35]} 34. Qa6 {[%emt 0:00:44]} Qc7 {[%emt 0:00:16]} 35. Qd6 {[%emt 0:00:31]} Qxd6 {[%emt 0:00:27]} 36. Rxd6 {[%emt 0:00:03]} Kf8 {[%emt 0:00:12]} 37. Rd7 {[%emt 0:02:47]} c4 {[%emt 0:00:17]} 38. bxc4 {[%emt 0:00:08]} Rxc4 {[%emt 0:00:06]} 39. Rd4 {[%emt 0:01:05]} Rc3 {[%emt 0:00:13]} 40. a4 {[%emt 0:00:10]} Ra3 {[%emt 0:00:03]} 41. g4 {[%emt 0:00:13]} g5 {[%emt 0:01:08]} 42. h3 {[%emt 0:00:37]} Ke7 {[%emt 0:00:08]} 43. Rd5 {[%emt 0:00:40]} h6 {[%emt 0:00:27]} 44. a5 {[%emt 0:00:10]} Ra4 {[%emt 0:00:16]} 45. Kg2 {[%emt 0:00:20]} Ke6 {[%emt 0:00:07]} 46. Rf5 {[%emt 0:00:44]} Rb4 {[%emt 0:00:49]} 47. Kg3 {[%emt 0:00:28]} f6 {[%emt 0:00:11]} 48. Rc5 {[%emt 0:00:39]} Ra4 {[%emt 0:00:10]} 49. Rc7 {[%emt 0:01:23]} h5 {[%emt 0:01:46]} 50. gxh5 {[%emt 0:01:10]} Rxa5 {[%emt 0:01:16]} 51. f3 {[%emt 0:07:14]} Ra4 {[%emt 0:00:21]} 52. Rc6+ {[%emt 0:00:18]} Kf7 {[%emt 0:01:11]} 53. e4 {[%emt 0:00:17]} Ra1 {[%emt 0:00:52]} 54. Rc7+ {[%emt 0:00:47]} Ke6 {[%emt 0:00:17]} 55. h6 {[%emt 0:01:34]} Rg1+ {[%emt 0:00:20]} 56. Kf2 {[%emt 0:00:46]} Ra1 {[%emt 0:01:37]} 57. h7 {[%emt 0:34:03]} Ra8 {[%emt 0:00:00]} 58. Rg7 {[%emt 0:00:00]} Rh8 {[%emt 0:00:00]} 59. h4 {[%emt 0:00:00]} gxh4 {[%emt 0:00:09]} 60. f4 {[%emt 0:00:00]} f5 {[%emt 0:00:55]} 61. e5 {[%emt 0:00:00]} Kd5 {[%emt 0:00:20]} 62. Kf3 {[%emt 0:00:00]} h3 {[%emt 0:00:44]} 63. Kg3 {[%emt 0:00:00]} Ke4 {[%emt 0:00:09]} 64. e6 {[%emt 0:00:00]} h2 {[%emt 0:00:07]} 65. Kxh2 {[%emt 0:00:00]} Kxf4 {[%emt 0:00:09]} 66. e7 {[%emt 0:00:00]} Kf3 {[%emt 0:00:27]} 67. Rg3+ {[%emt 0:00:00]} Kf2 {[%emt 0:00:22]} 68. e8=Q {[%emt 0:00:00]} 1-0

[Event "22nd Trieste Masters Open 2020"]
[Site "Trieste"]
[Date "2020.08.31"]
[Round "2.2"]
[White "Bosiocic, Marin"]
[Black "Maerevoet, Sim"]
[Result "1-0"]
[ECO "E62"]
[WhiteElo "2606"]
[BlackElo "2379"]
[Annotator "ChessBase"]
[PlyCount "99"]
[EventDate "2020.08.31"]
[EventType "swiss"]
[EventCountry "ITA"]
[SourceTitle "playchess.com"]
[Source "ChessBase"]
[SourceQuality "1"]
[TimeControl "5400+30"]

1. c4 {[%emt 0:00:00]} Nf6 {[%emt 0:00:00]} 2. Nc3 {[%emt 0:00:00]} e5 {[%emt 0:00:00]} 3. Nf3 {[%emt 0:00:00]} Nc6 {[%emt 0:00:08]} 4. e3 {[%emt 0:00:05]} g6 {[%emt 0:00:15]} 5. d4 {[%emt 0:00:21]} d6 {[%emt 0:00:06]} 6. g3 {[%emt 0:12:01]} Bg7 {[%emt 0:00:28]} 7. Bg2 {[%emt 0:00:06]} O-O {[%emt 0:02:16]} 8. O-O {[%emt 0:00:10]} Bf5 {[%emt 0:07:30]} 9. h3 {[%emt 0:00:11]} h5 {[%emt 0:14:19]} 10. b3 {[%emt 0:07:21]} Re8 {[%emt 0:03:20]} 11. Bb2 {[%emt 0:04:21]} e4 {[%emt 0:07:13]} 12. Nh4 {[%emt 0:06:04]} Bd7 {[%emt 0:06:33]} 13. f4 {[%emt 0:00:13]} Nb4 {[%emt 0:07:06]} 14. Ba3 {[%emt 0:01:57]} a5 {[%emt 0:01:59]} 15. Qd2 {[%emt 0:01:12]} Ra6 {[%emt 0:09:38]} 16. Kh2 {[%emt 0:06:21]} c6 {[%emt 0:03:07]} 17. Rad1 {[%emt 0:06:18]} Qc7 {[%emt 0:03:09]} 18. Rc1 {[%emt 0:03:05]} Qb8 {[%emt 0:01:16]} 19. Rg1 {[%emt 0:02:22]} b5 {[%emt 0:02:11]} 20. Rb1 {[%emt 0:02:29]} d5 {[%emt 0:01:57]} 21. c5 {[%emt 0:05:07]} Nd3 {[%emt 0:02:29]} 22. Bb2 {[%emt 0:01:14]} Qc8 {[%emt 0:02:38]} 23. Ba1 {[%emt 0:01:26]} Nh7 {[%emt 0:01:17]} 24. Qe2 {[%emt 0:10:56]} Bf6 {[%emt 0:00:43]} 25. Bf1 {[%emt 0:00:07]} Kh8 {[%emt 0:01:53]} 26. Rd1 {[%emt 0:05:16]} Bxh4 {[%emt 0:01:47]} 27. gxh4 {[%emt 0:00:06]} Qd8 {[%emt 0:00:33]} 28. a4 {[%emt 0:02:26]} bxa4 {[%emt 0:08:21]} 29. Nxe4 {[%emt 0:01:00]} Rxe4 {[%emt 0:01:19]} 30. Rxd3 {[%emt 0:07:13]} Qxh4 {[%emt 0:00:25]} 31. Bc3 {[%emt 0:01:45]} Ra8 {[%emt 0:03:08]} 32. bxa4 {[%emt 0:01:30]} Bf5 {[%emt 0:01:40]} 33. Be1 {[%emt 0:01:26]} Qd8 {[%emt 0:00:34]} 34. Rb3 {[%emt 0:01:28]} Re8 {[%emt 0:02:32]} 35. Qb2 {[%emt 0:01:09]} Nf8 {[%emt 0:03:03]} 36. Bd2 {[%emt 0:01:44]} Nd7 {[%emt 0:00:29]} 37. Rb7 {[%emt 0:00:30]} Qh4 {[%emt 0:00:42]} 38. Bg2 {[%emt 0:02:57]} Reb8 {[%emt 0:00:38]} 39. e4 {[%emt 0:03:13]} Rxb7 {[%emt 0:00:42]} 40. Qb4 {[%emt 0:04:50]} Rb6 41. Qxb6 {[%emt 0:00:00]} Rb8 {[%emt 0:00:34]} 42. Qxc6 {[%emt 0:00:00]} dxe4 {[%emt 0:01:11]} 43. Be1 {[%emt 0:00:00]} Qe7 {[%emt 0:00:41]} 44. Qc7 {[%emt 0:00:00]} Qe8 {[%emt 0:01:06]} 45. c6 {[%emt 0:00:49]} Nb6 {[%emt 0:00:43]} 46. Qd6 {[%emt 0:00:38]} Rc8 {[%emt 0:00:42]} 47. d5 {[%emt 0:00:47]} Kh7 {[%emt 0:00:23]} 48. Bc3 {[%emt 0:01:02]} Nxd5 {[%emt 0:00:44]} 49. Qxd5 {[%emt 0:00:08]} Qxc6 {[%emt 0:00:04]} 50. Qxf7+ {[%emt 0:00:15]} 1-0

[Event "22nd Trieste Masters Open 2020"]
[Site "Trieste"]
[Date "2020.08.31"]
[Round "2.3"]
[White "Mazi, Leon"]
[Black "Brunello, Sabino"]
[Result "0-1"]
[ECO "B97"]
[WhiteElo "2354"]
[BlackElo "2532"]
[Annotator "ChessBase"]
[PlyCount "78"]
[EventDate "2020.08.31"]
[EventType "swiss"]
[EventCountry "ITA"]
[SourceTitle "playchess.com"]
[Source "ChessBase"]
[SourceQuality "1"]
[TimeControl "5400+30"]

1. e4 c5 {[%emt 0:00:00]} 2. Nf3 {[%emt 0:00:31]} d6 {[%emt 0:00:00]} 3. d4 {[%emt 0:00:34]} cxd4 {[%emt 0:00:04]} 4. Nxd4 {[%emt 0:00:57]} Nf6 {[%emt 0:00:13]} 5. Nc3 {[%emt 0:00:19]} a6 {[%emt 0:00:43]} 6. Bg5 {[%emt 0:01:53]} e6 {[%emt 0:01:28]} 7. f4 {[%emt 0:01:43]} Qb6 {[%emt 0:02:46]} 8. Nb3 {[%emt 0:03:07]} Nbd7 {[%emt 0:05:40]} 9. Qe2 {[%emt 0:03:01]} Qc7 {[%emt 0:02:42]} 10. O-O-O {[%emt 0:04:39]} Be7 {[%emt 0:04:11]} 11. Kb1 {[%emt 0:04:42]} b5 {[%emt 0:05:21]} 12. a3 {[%emt 0:00:29]} Rb8 {[%emt 0:12:27]} 13. e5 {[%emt 0:13:42]} dxe5 {[%emt 0:04:20]} 14. fxe5 {[%emt 0:00:20]} Qxe5 {[%emt 0:01:55]} 15. Qd2 {[%emt 0:04:38]} b4 {[%emt 0:10:28]} 16. axb4 {[%emt 0:05:11]} Rxb4 {[%emt 0:02:23]} 17. Bd3 {[%emt 0:03:23]} Rg4 {[%emt 0:11:35]} 18. h4 {[%emt 0:10:09]} Bb7 {[%emt 0:04:57]} 19. Bf1 {[%emt 0:10:45]} Qc7 {[%emt 0:11:55]} 20. Rh3 {[%emt 0:00:27]} h6 {[%emt 0:03:10]} 21. Be3 {[%emt 0:08:36]} O-O {[%emt 0:00:26]} 22. g3 {[%emt 0:00:59]} Rd8 {[%emt 0:01:25]} 23. Bd3 {[%emt 0:05:47]} Ne5 {[%emt 0:06:06]} 24. Bf4 {[%emt 0:00:58]} Nh5 {[%emt 0:00:18]} 25. Bxe5 {[%emt 0:08:38]} Qxe5 {[%emt 0:00:07]} 26. Qf2 {[%emt 0:00:05]} Rxg3 {[%emt 0:03:42]} 27. Rf1 {[%emt 0:01:26]} Bf6 {[%emt 0:00:59]} 28. Rxg3 {[%emt 0:01:27]} Qxg3 {[%emt 0:00:12]} 29. Qb6 {[%emt 0:00:21]} Rxd3 {[%emt 0:00:59]} 30. Qxb7 {[%emt 0:04:09]} Rxc3 {[%emt 0:00:25]} 31. Qa8+ {[%emt 0:01:48]} Kh7 {[%emt 0:00:13]} 32. Qe4+ {[%emt 0:00:37]} g6 {[%emt 0:00:37]} 33. bxc3 {[%emt 0:00:28]} Qxc3 {[%emt 0:00:18]} 34. Rxf6 {[%emt 0:00:33]} Nxf6 {[%emt 0:00:26]} 35. Qb7 {[%emt 0:00:06]} Kg7 {[%emt 0:00:23]} 36. Qxa6 {[%emt 0:00:20]} Nd5 {[%emt 0:00:14]} 37. Qa7 {[%emt 0:00:37]} Qe1+ {[%emt 0:00:35]} 38. Kb2 {[%emt 0:00:10]} Qxh4 {[%emt 0:00:05]} 39. Nd4 {[%emt 0:00:16]} Qe7 {[%emt 0:00:39]} 0-1

[Event "22nd Trieste Masters Open 2020"]
[Site "Trieste"]
[Date "2020.08.31"]
[Round "2.4"]
[White "Moroni, Luca Jr"]
[Black "Brunello, Marina"]
[Result "1-0"]
[ECO "D43"]
[WhiteElo "2530"]
[BlackElo "2368"]
[Annotator "ChessBase"]
[PlyCount "79"]
[EventDate "2020.08.31"]
[EventType "swiss"]
[EventCountry "ITA"]
[SourceTitle "playchess.com"]
[Source "ChessBase"]
[SourceQuality "1"]
[TimeControl "5400+30"]

1. d4 {[%emt 0:00:00]} d5 {[%emt 0:00:00]} 2. c4 {[%emt 0:00:00]} c6 {[%emt 0:00:00]} 3. Nf3 {[%emt 0:00:00]} Nf6 {[%emt 0:00:00]} 4. Nc3 {[%emt 0:00:00]} e6 {[%emt 0:00:00]} 5. Bg5 {[%emt 0:00:00]} h6 {[%emt 0:02:20]} 6. Bh4 {[%emt 0:00:00]} dxc4 {[%emt 0:02:05]} 7. e4 {[%emt 0:00:00]} g5 {[%emt 0:00:05]} 8. Bg3 {[%emt 0:00:00]} b5 {[%emt 0:00:04]} 9. Be2 {[%emt 0:00:00]} Bb7 {[%emt 0:00:34]} 10. Qc2 {[%emt 0:00:04]} Nbd7 {[%emt 0:01:06]} 11. Rd1 {[%emt 0:00:05]} Qb6 {[%emt 0:02:57]} 12. Ne5 {[%emt 0:00:04]} Bg7 {[%emt 0:13:02]} 13. h4 {[%emt 0:00:08]} Nxe5 {[%emt 0:06:26]} 14. Bxe5 {[%emt 0:06:29]} O-O-O {[%emt 0:00:50]} 15. b3 {[%emt 0:10:03]} cxb3 {[%emt 0:04:56]} 16. Qxb3 {[%emt 0:03:00]} Rhg8 {[%emt 0:03:12]} 17. Nxb5 {[%emt 0:17:13]} Qa5+ {[%emt 0:03:03]} 18. Qc3 {[%emt 0:03:30]} Qxc3+ {[%emt 0:00:16]} 19. Nxc3 {[%emt 0:00:02]} Nd7 {[%emt 0:08:41]} 20. Bd6 {[%emt 0:04:41]} Bf8 {[%emt 0:02:18]} 21. Bxf8 {[%emt 0:01:57]} Rgxf8 {[%emt 0:00:43]} 22. hxg5 {[%emt 0:03:57]} hxg5 {[%emt 0:00:07]} 23. Rh5 {[%emt 0:00:30]} f6 {[%emt 0:03:54]} 24. Bc4 {[%emt 0:03:16]} Rfe8 {[%emt 0:08:10]} 25. Rh6 {[%emt 0:04:46]} e5 {[%emt 0:02:36]} 26. d5 {[%emt 0:01:21]} Rh8 {[%emt 0:01:15]} 27. Rxh8 {[%emt 0:00:45]} Rxh8 {[%emt 0:00:03]} 28. dxc6 {[%emt 0:00:42]} Bxc6 {[%emt 0:00:05]} 29. Rd6 {[%emt 0:01:28]} Kc7 {[%emt 0:00:34]} 30. Re6 {[%emt 0:00:13]} Rh1+ {[%emt 0:07:35]} 31. Ke2 {[%emt 0:01:20]} Rh4 {[%emt 0:07:34]} 32. g3 {[%emt 0:03:55]} Rh6 {[%emt 0:00:06]} 33. Bd5 {[%emt 0:13:13]} Bxd5 {[%emt 0:04:30]} 34. Nxd5+ {[%emt 0:00:09]} Kb7 {[%emt 0:00:03]} 35. Rd6 {[%emt 0:02:50]} Nc5 {[%emt 0:02:00]} 36. Rxf6 {[%emt 0:01:01]} Rh1 {[%emt 0:00:04]} 37. Rf5 {[%emt 0:02:45]} Rb1 {[%emt 0:02:14]} 38. Rxe5 {[%emt 0:01:09]} Rb2+ {[%emt 0:00:06]} 39. Ke3 {[%emt 0:00:09]} g4 {[%emt 0:02:28]} 40. Nc3 {[%emt 0:00:48]} 1-0

[Event "22nd Trieste Masters Open 2020"]
[Site "Trieste"]
[Date "2020.08.31"]
[Round "2.5"]
[White "Lumachi, Gabriele"]
[Black "Jovanic, Ognjen"]
[Result "0-1"]
[ECO "E20"]
[WhiteElo "2327"]
[BlackElo "2526"]
[Annotator "ChessBase"]
[PlyCount "57"]
[EventDate "2020.08.31"]
[EventType "swiss"]
[EventCountry "ITA"]
[SourceTitle "playchess.com"]
[Source "ChessBase"]
[SourceQuality "1"]
[TimeControl "5400+30"]

1. d4 {[%emt 0:00:00]} Nf6 {[%emt 0:00:10]} 2. c4 {[%emt 0:00:00]} e6 {[%emt 0:00:29]} 3. Nc3 {[%emt 0:00:15]} Bb4 {[%emt 0:00:40]} 4. g3 {[%emt 0:00:24]} c5 {[%emt 0:05:14]} 5. Nf3 {[%emt 0:00:06]} b6 {[%emt 0:14:18]} 6. Bg2 {[%emt 0:00:14]} Bb7 {[%emt 0:00:05]} 7. O-O {[%emt 0:00:06]} Bxc3 {[%emt 0:02:07]} 8. bxc3 {[%emt 0:00:11]} d6 {[%emt 0:00:39]} 9. dxc5 {[%emt 0:17:12]} dxc5 {[%emt 0:08:27]} 10. Qxd8+ {[%emt 0:31:14]} Kxd8 {[%emt 0:00:02]} 11. Rd1+ {[%emt 0:01:09]} Ke7 {[%emt 0:03:42]} 12. Bf4 {[%emt 0:00:57]} Rc8 {[%emt 0:07:32]} 13. Rab1 {[%emt 0:37:06]} Nbd7 {[%emt 0:13:26]} 14. Ne5 {[%emt 0:04:30]} Bxg2 {[%emt 0:00:43]} 15. Kxg2 {[%emt 0:00:58]} Nxe5 {[%emt 0:00:31]} 16. Bxe5 {[%emt 0:00:06]} Ne8 {[%emt 0:00:21]} 17. g4 {[%emt 0:00:37]} f6 {[%emt 0:13:12]} 18. Bg3 {[%emt 0:00:02]} Rd8 {[%emt 0:00:08]} 19. a4 {[%emt 0:00:44]} e5 {[%emt 0:08:38]} 20. Rd4 {[%emt 0:04:09]} Rd7 21. Rxd7+ {[%emt 0:00:00]} Ke6 {[%emt 0:03:45]} 22. Kf3 {[%emt 0:00:17]} Nd6 {[%emt 0:03:05]} 23. Rd8 {[%emt 0:00:05]} Ke7 {[%emt 0:03:07]} 24. Rg8 {[%emt 0:00:16]} Nb5 {[%emt 0:01:37]} 25. e4 {[%emt 0:00:00]} g5 {[%emt 0:02:12]} 26. Bxe5 {[%emt 0:01:14]} Nd6 {[%emt 0:00:40]} 27. Bxd6+ {[%emt 0:00:30]} Kxd6 {[%emt 0:00:00]} 28. Rxb6+ {[%emt 0:00:35]} Ke5 {[%emt 0:00:00]} 29. Rg6 {[%emt 0:00:08]} 0-1